bitfinex-derivatives/quotes_SOLF0:USTF0_20250821
["timestamp","ask_amount","ask_price","bid_price","bid_amount"]
[1755757913198,2.92,187.03,187.0,6.7339593]
[1755757913399,2.92,187.03,187.01,6.7339593]
[1755757913601,2.92,187.03,186.99,2.99]
[1755757913602,2.92,187.02,186.99,2.99]
[1755757913900,2.92,187.02,187.0,4.80612214]
[1755757914100,2.92,187.02,186.99,2.99]
[1755757914301,2.92,187.05,187.0,6.73503325]
[1755757914497,2.92,187.05,187.01,9.7249447]
[1755757914701,2.92,187.05,187.02,7.79653422]
[1755757914902,2.92,187.08,187.0,5.3474]
[1755757915105,2.92,187.08,187.01,9.72522912]
[1755757915306,2.92,187.08,187.02,6.73522912]
[1755757915603,2.92,187.08,186.97,2.99]
[1755757915807,2.92,187.08,186.98,6.73643478]
[1755757916105,2.92,187.08,186.99,6.73643478]
[1755757916303,2.29917115,187.05,187.0,6.73643478]
[1755757916503,2.84,187.04,186.95,5.30917115]
[1755757916802,2.84,187.04,186.96,6.73723328]
[1755757917110,131.59076748,187.11,186.99,3.01]
[1755757917111,2.84,187.07,186.99,3.01]
[1755757917297,2.84,187.07,187.0,6.73711596]
[1755757917503,2.84,187.07,187.01,6.73711596]
[1755757917703,2.29917115,187.05,186.99,3.01]
[1755757917907,2.29917115,187.05,187.0,6.73750488]
[1755757917908,2.84,187.03,187.0,6.73750488]
[1755757918207,2.84,187.03,186.99,3.01]
[1755757918409,2.84,187.1,187.0,6.73873025]
[1755757918707,5.13917115,187.07,187.01,6.73868954]
[1755757918907,2.29917115,187.07,187.02,6.73868954]
[1755757919111,5.13917115,187.07,187.0,5.3473]
[1755757919306,5.13917115,187.07,187.01,6.7390427]
[1755757919504,2.84,187.06,187.02,6.7390427]
[1755757919708,2.84,187.05,186.99,3.01]
[1755757920009,2.84,187.05,187.02,3.01]
[1755757920306,2.29917115,187.07,187.03,4.8099324]
[1755757920508,5.13917115,187.07,187.03,3.01]
[1755757921104,5.13917115,187.07,187.01,5.3471]
[1755757921304,5.13917115,187.07,187.04,3.01]
[1755757921500,5.13917115,187.1,187.03,3.01]
[1755757921701,5.13917115,187.1,187.04,4.81041735]
[1755757921902,5.13917115,187.1,187.03,3.01]
[1755757922098,130.42637786,187.12,187.05,3.01]
[1755757922509,130.42637786,187.12,187.06,4.81054791]
[1755757922808,130.42637786,187.12,187.05,3.01]
[1755757923004,130.42637786,187.12,187.06,4.81054698]
[1755757923207,2.84,187.09,187.01,5.3471]
[1755757923401,2.84,187.09,187.02,6.74247252]
[1755757923603,2.84,187.09,187.03,6.74247252]
[1755757923803,2.84,187.07,187.04,4.81163523]
[1755757924009,2.84,187.07,187.01,5.3471]
[1755757924209,2.84,187.07,187.03,3.01]
[1755757924506,2.84,187.07,187.04,4.81176657]
[1755757924708,2.84,187.07,187.03,3.01]
[1755757924910,2.84,187.07,187.04,4.81296203]
[1755757925104,2.84,187.07,187.03,3.01]
[1755757925309,2.84,187.06,187.0,3.01]
[1755757925505,2.84,187.05,187.01,9.75674051]
[1755757925707,2.84,187.05,187.01,4.94203234]
[1755757925908,2.84,187.05,187.02,6.74694025]
[1755757926108,2.84,187.05,187.03,4.8148396]
[1755757926408,2.84,187.05,187.01,3.01]
[1755757926611,2.84,187.05,187.02,6.75765222]
[1755757926811,2.84,187.05,187.03,6.75765222]
[1755757927009,2.84,187.05,187.01,3.01]
[1755757927211,2.84,187.05,187.02,6.75765222]
[1755757927514,5.13917115,187.07,187.03,6.75765222]
[1755757927701,2.84,187.06,187.04,4.8247361]
[1755757927905,2.84,187.06,186.99,5.3477]
[1755757928111,2.84,187.06,187.02,3.01]
[1755757928404,2.84,187.06,187.03,6.76071702]
[1755757928612,2.84,187.06,187.04,6.76071702]
[1755757928815,2.84,187.06,187.02,3.01]
[1755757929106,2.29917115,187.07,187.03,6.76447735]
[1755757929412,2.84,187.05,187.04,6.76447735]
[1755757929909,5.13917115,187.07,187.04,6.76447735]
[1755757930106,5.13917115,187.07,187.05,4.82962013]
[1755757930305,5.13917115,187.07,187.01,3.01]
[1755757930509,2.84,187.06,187.03,3.01]
[1755757930710,2.84,187.06,187.04,6.77166413]
[1755757930906,2.84,187.06,187.05,6.77166413]
[1755757932115,130.42637786,187.12,187.07,3.01]
[1755757932116,2.84,187.1,187.07,3.01]
[1755757932309,130.42637786,187.12,187.08,6.77166413]
[1755757932510,133.26637786,187.12,187.08,3.01]
[1755757933316,133.26637786,187.12,187.01,2.29917115]
[1755757933520,130.42637786,187.12,187.05,5.3459]
[1755757933716,130.42637786,187.12,187.06,6.77253858]
[1755757933918,133.26637786,187.12,187.08,3.01]
[1755757934119,133.26637786,187.12,187.09,4.83541935]
[1755757934320,133.26637786,187.12,187.08,3.01]
[1755757934518,133.26637786,187.12,187.09,4.83519491]
[1755757934718,133.26637786,187.12,187.08,3.01]
[1755757934913,133.26637786,187.12,187.09,4.83519491]
[1755757935117,2.84,187.11,187.08,3.01]
[1755757935311,2.84,187.11,187.09,4.83568631]
[1755757935515,2.84,187.11,187.08,3.01]
[1755757935715,2.84,187.11,187.09,4.8352395]
[1755757935913,2.84,187.11,187.08,3.01]
[1755757936114,2.84,187.11,187.09,4.8352395]
[1755757936316,2.84,187.11,187.08,3.01]
[1755757936616,2.84,187.11,187.09,4.8354103]
[1755757936814,130.42637786,187.12,187.07,5.3455]
[1755757937018,133.26637786,187.12,187.08,9.78250895]
[1755757937317,133.26637786,187.12,187.09,6.77250895]
[1755757937617,2.84,187.11,187.1,4.8354103]
[1755757938119,2.84,187.11,187.1,6.77225538]
[1755757938418,2.84,187.11,187.1,6.77245744]
[1755757939314,130.42637786,187.12,187.1,6.77245744]
[1755757939515,130.42637786,187.12,187.11,9.78245744]
[1755757941315,130.42637786,187.12,187.11,9.7812235]
[1755757941815,133.26637786,187.12,187.11,6.7712235]
[1755757944522,133.26637786,187.12,187.11,6.76708937]
[1755757946819,2.97,187.11,187.01,7.53145425]
[1755757947124,2.97,187.11,187.02,6.76748979]
[1755757947326,2.97,187.11,187.03,9.79748979]
[1755757947524,2.97,187.11,187.04,6.76748979]
[1755757947724,130.54,187.1,187.05,6.76777281]
[1755757947924,2.97,187.09,187.06,6.76777281]
[1755757948223,2.97,187.09,187.07,6.76777281]
[1755757948426,2.97,187.09,187.08,6.76777281]
[1755757951325,132.83917115,187.1,187.08,6.76777281]
[1755757951530,132.83917115,187.1,187.09,6.76777281]
[1755757951731,130.54,187.1,187.09,9.79777281]
[1755757952826,2.29917115,187.13,187.1,3.03]
[1755757953029,2.29917115,187.13,187.11,6.76777281]
[1755757953230,5.26917115,187.13,187.1,3.03]
[1755757953433,5.26917115,187.13,187.11,6.76660036]
[1755757953634,5.26917115,187.13,187.1,3.03]
[1755757953930,5.26917115,187.13,187.11,6.76660036]
[1755757954132,130.54,187.14,187.12,4.83073252]
[1755757954432,130.54,187.14,187.13,6.76495293]
[1755757955329,130.54,187.14,187.13,4.82962456]
[1755757955727,133.51,187.14,187.13,4.82962456]
[1755757956629,133.51,187.14,187.07,8.3754]
[1755757956826,133.51,187.14,187.08,6.75824894]
[1755757957028,2.97,187.13,187.09,9.78824894]
[1755757957224,2.97,187.13,187.1,6.75824894]
[1755757957422,2.97,187.13,187.11,6.75824894]
[1755757957624,2.97,187.13,187.12,6.75824894]
[1755757958936,2.97,187.13,187.12,4.82349552]
[1755757963139,2.97,187.13,187.12,4.82385132]
[1755757963437,2.97,187.13,187.12,6.7591088]
[1755757963637,2.97,187.13,187.12,6.75997241]
[1755757967144,130.54,187.14,187.13,3.03]
[1755757967341,130.54,187.14,187.13,9.78997241]
[1755757969744,135.78917115,187.17,187.14,3.03]
[1755757970038,135.78917115,187.17,187.15,6.75997241]
[1755757970233,2.97,187.16,187.14,3.03]
[1755757970437,2.97,187.16,187.15,6.75725844]
[1755757972245,2.97,187.16,187.15,4.82226728]
[1755757972544,132.81917115,187.17,187.15,6.75912721]
[1755757972742,132.81917115,187.17,187.15,3.03]
[1755757973344,132.81917115,187.17,187.16,4.82365787]
[1755757973745,509.47524743,187.19,187.16,4.82365787]
[1755757973746,130.5,187.18,187.16,9.78918199]
[1755757973944,130.5,187.18,187.17,6.75918199]
[1755757974844,133.47,187.18,187.17,6.75918199]
[1755757977445,133.47,187.18,187.17,4.82365787]
[1755757977746,133.47,187.18,187.17,6.75900536]
[1755757977947,2.97,187.18,187.17,6.75900536]
[1755757978247,130.5,187.18,187.17,6.75900536]
[1755757979144,133.3,187.18,187.17,6.75900536]
[1755757979941,130.5,187.18,187.17,6.75900536]
[1755757980247,133.3,187.18,187.17,6.75900536]
[1755757981146,133.3,187.18,187.17,1.93512915]
[1755757981351,133.3,187.18,187.17,8.69331762]
[1755757982849,133.28,187.18,187.17,8.69331762]
[1755757983148,130.48,187.18,187.17,8.69331762]
[1755757983755,133.28,187.18,187.17,8.69331762]
[1755757985654,130.48,187.18,187.17,11.64331762]
[1755757986155,277.44524743,187.19,187.17,11.64331762]
[1755757986352,277.44524743,187.19,187.18,6.75818847]
[1755757987588,280.24524743,187.19,187.18,6.75818847]
[1755757988050,146.98524743,187.19,187.18,9.70818847]
[1755757988254,277.44524743,187.19,187.18,9.70818847]
[1755757988952,130.46,187.19,187.18,9.70818847]
[1755757989151,130.46,187.2,187.18,6.75818847]
[1755757989354,133.26,187.2,187.19,6.75818847]
[1755757990457,133.26,187.2,187.19,6.76134421]
[1755757992056,2.8,187.2,187.19,6.76134421]
[1755757993052,2.8,187.2,187.17,1.93512915]
[1755757993250,5.09917115,187.18,187.17,1.93512915]
[1755757996664,2.8,187.17,187.06,2.95]
[1755757996864,2.29917115,187.12,187.06,2.95]
[1755757999568,5.09917115,187.12,187.06,2.95]
[1755757999768,2.29917115,187.17,187.05,2.29917115]
[1755757999967,2.29917115,187.17,187.06,2.95]
[1755758000164,2.8,187.16,187.06,2.95]
[1755758000662,2.8,187.16,187.07,5.3453]
[1755758001065,2.8,187.16,187.05,2.29917115]
[1755758001066,2.8,187.16,187.08,2.95]
[1755758001873,2.29917115,187.14,187.08,2.95]
[1755758002767,5.09917115,187.14,187.08,2.95]
[1755758004574,5.09917115,187.14,187.1,2.95]
[1755758005674,5.09917115,187.14,187.09,5.3449]
[1755758005865,0.93025742,187.22,187.13,2.95]
[1755758005866,5.09917115,187.17,187.13,2.95]
[1755758006071,2.29917115,187.17,187.13,2.95]
[1755758006275,2.97,187.16,187.13,2.95]
[1755758006774,2.29917115,187.17,187.13,2.95]
[1755758006977,2.97,187.16,187.11,5.3443]
[1755758007177,2.97,187.16,187.12,2.74]
[1755758007472,2.97,187.16,187.06,2.74]
[1755758007775,2.97,187.16,187.13,2.74]
[1755758009278,2.97,187.16,187.12,5.344]
[1755758009481,5.26917115,187.17,187.14,2.74]
[1755758010483,2.29917115,187.17,187.14,2.74]
[1755758010681,5.26917115,187.21,187.13,2.74]
[1755758011176,5.26917115,187.21,187.14,5.3435]
[1755758012177,5.26917115,187.21,187.13,8.0837]
[1755758015184,5.26917115,187.21,187.14,5.3434]
[1755758015383,5.26917115,187.21,187.14,8.0834]
[1755758015584,2.97,187.21,187.16,5.3427]
[1755758015777,2.97,187.21,187.17,2.74]
[1755758015976,2.97,187.2,187.17,2.74]
[1755758016587,130.44,187.22,187.14,5.3434]
[1755758016786,2.97,187.19,187.15,2.74]
[1755758017190,2.97,187.19,187.14,5.3434]
[1755758017385,2.97,187.19,187.15,2.74]
[1755758017586,2.97,187.19,187.16,2.74]
[1755758018087,2.97,187.2,187.12,2.74]
[1755758018489,2.97,187.2,187.12,8.084]
[1755758020290,2.97,187.2,187.14,2.74]
[1755758020791,2.97,187.2,187.11,2.29917115]
[1755758021085,2.97,187.23,187.12,2.74]
[1755758021291,2.97,187.23,187.16,5.3426]
[1755758021484,2.97,187.23,187.17,2.74]
[1755758022190,278.60219336,187.24,187.17,2.74]
[1755758022191,276.30302221,187.24,187.17,2.74]
[1755758022793,279.27302221,187.24,187.2,2.74]
[1755758022987,148.85302221,187.24,187.2,2.74]
[1755758023188,145.88302221,187.24,187.2,2.74]
[1755758023388,145.88302221,187.24,187.21,2.74]
[1755758023589,145.88302221,187.24,187.22,2.74]
[1755758025890,148.85302221,187.24,187.19,5.342]
[1755758026089,148.85302221,187.24,187.2,2.74]
[1755758026990,145.88302221,187.24,187.2,2.74]
[1755758027193,2.97,187.22,187.18,2.74]
[1755758027388,2.97,187.21,187.18,2.74]
[1755758027593,2.97,187.2,187.12,2.74]
[1755758028298,2.97,187.2,187.12,8.0839]
[1755758029697,2.97,187.2,187.12,2.74]
[1755758029998,2.97,187.16,187.12,2.74]
[1755758030198,2.97,187.15,187.09,2.74]
[1755758030397,2.97,187.15,187.11,2.74]
[1755758030994,2.29917115,187.18,187.12,2.74]
[1755758031199,5.26917115,187.18,187.12,2.74]
[1755758031501,5.26917115,187.18,187.13,5.3436]
[1755758031802,5.26917115,187.18,187.14,2.74]
[1755758032000,5.26917115,187.18,187.15,2.74]
[1755758032201,2.29917115,187.21,187.15,2.74]
[1755758032798,2.29917115,187.21,187.15,8.0831]
[1755758033403,2.29917115,187.27,187.17,7.64167115]
[1755758033602,2.97,187.26,187.17,2.29917115]
[1755758034302,2.97,187.26,187.16,2.74]
[1755758034702,2.97,187.26,187.17,5.3426]
[1755758037107,2.97,187.26,187.16,2.74]
[1755758037608,2.97,187.26,187.17,5.3424]
[1755758037809,2.97,187.26,187.16,2.74]
[1755758038202,2.97,187.26,187.17,5.3425]
[1755758039204,2.97,187.26,187.18,5.3422]
[1755758039905,2.97,187.26,187.17,5.3425]
[1755758040407,2.29917115,187.24,187.16,2.74]
[1755758040613,2.74,187.2,187.13,2.93]
[1755758041008,2.74,187.2,187.13,8.2735]
[1755758041210,2.74,187.2,187.13,2.93]
[1755758041712,2.74,187.2,187.13,8.2736]
[1755758042712,2.74,187.2,187.14,5.3434]
[1755758045209,2.74,187.2,187.13,8.2737]
[1755758046816,2.74,187.2,187.13,2.93]
[1755758047016,2.74,187.2,187.1,2.29917115]
[1755758047017,2.74,187.17,187.1,2.93]
[1755758047406,2.74,187.17,187.1,8.2744]
[1755758047606,2.74,187.17,187.1,2.93]
[1755758049316,2.74,187.17,187.12,2.93]
[1755758049618,2.74,187.16,187.12,2.93]
[1755758050409,2.29917115,187.18,187.12,2.93]
[1755758051517,2.29917115,187.18,187.12,8.274]
[1755758052616,2.29917115,187.18,187.13,5.3437]
[1755758052919,2.29917115,187.21,187.11,2.93]
[1755758053314,2.29917115,187.21,187.14,5.3433]
[1755758053617,2.29917115,187.21,187.1,2.29917115]
[1755758053618,2.29917115,187.21,187.15,2.93]
[1755758054120,2.29917115,187.21,187.15,8.2731]
[1755758054424,2.29917115,187.21,187.15,2.93]
[1755758057219,2.74,187.22,187.15,2.93]
[1755758059025,2.29917115,187.2,187.15,2.93]
[1755758059322,2.74,187.19,187.15,2.93]
[1755758059521,2.74,187.19,187.16,2.93]
[1755758063127,2.74,187.19,187.13,2.93]
[1755758064121,2.29917115,187.2,187.13,2.93]
[1755758065022,2.29917115,187.21,187.11,2.93]
[1755758065230,2.74,187.22,187.11,2.93]
[1755758065231,5.03917115,187.22,187.11,2.93]
[1755758065722,5.03917115,187.22,187.15,2.93]
[1755758066329,137.07961261,187.24,187.15,2.93]
[1755758066330,139.37878376,187.24,187.15,2.93]
[1755758067328,139.37878376,187.24,187.18,2.83]
[1755758068619,137.07961261,187.24,187.18,2.83]
[1755758069828,2.82,187.22,187.18,2.83]
[1755758070025,2.82,187.21,187.18,2.83]
[1755758074133,2.82,187.22,187.13,2.83]
[1755758074628,2.82,187.22,187.13,8.1737]
[1755758077633,2.82,187.22,187.11,2.83]
[1755758078132,2.82,187.22,187.16,2.83]
[1755758080534,2.82,187.22,187.11,2.83]
[1755758080841,2.82,187.22,187.13,5.3436]
[1755758081135,2.82,187.22,187.14,2.83]
[1755758082136,137.07961261,187.24,187.14,2.83]
[1755758082137,2.82,187.19,187.14,2.83]
[1755758082435,2.82,187.18,187.14,2.83]
[1755758083937,2.82,187.18,187.15,2.83]
[1755758088240,2.29917115,187.2,187.16,2.83]
[1755758088433,5.11917115,187.2,187.16,2.83]
[1755758089438,2.29917115,187.2,187.15,5.3432]
[1755758089644,2.29917115,187.2,187.18,2.83]
[1755758090437,5.11917115,187.2,187.14,5.3434]
[1755758090641,2.29917115,187.2,187.16,2.83]
[1755758090940,5.11917115,187.2,187.14,8.1734]
[1755758091141,5.11917115,187.2,187.14,2.83]
[1755758099649,3.02,187.19,187.11,2.97]
[1755758100044,3.02,187.19,187.11,8.3141]
[1755758100245,3.02,187.19,187.11,2.97]
[1755758100449,1.46620965,187.16,187.11,2.97]
[1755758100752,3.02,187.15,187.1,6.81070965]
[1755758100951,3.02,187.15,187.12,2.97]
[1755758101248,3.02,187.15,187.13,2.97]
[1755758101646,3.02,187.18,187.14,2.97]
[1755758101845,3.02,187.18,187.15,2.97]
[1755758101846,4.48620965,187.18,187.15,2.97]
[1755758102041,3.02,187.18,187.14,6.80960965]
[1755758102241,3.02,187.19,187.16,2.97]
[1755758102747,3.02,187.2,187.13,8.3137]
[1755758103947,3.02,187.2,187.14,5.3434]
[1755758108253,3.02,187.2,187.13,8.3137]
[1755758108851,3.02,187.2,187.13,2.97]
[1755758109045,3.02,187.2,187.14,5.3435]
[1755758110255,3.02,187.2,187.13,2.97]
[1755758112456,2.29004649,187.19,187.13,2.97]
[1755758112752,3.02,187.18,187.13,2.97]
[1755758112949,3.02,187.17,187.14,2.97]
[1755758113646,2.29004649,187.19,187.09,2.29004649]
[1755758113647,3.02,187.18,187.1,2.97]
[1755758113847,3.02,187.18,187.11,5.3443]
[1755758114050,3.02,187.18,187.12,2.97]
[1755758114246,2.29004649,187.19,187.12,2.97]
[1755758114555,3.02,187.21,187.15,2.97]
[1755758116759,3.02,187.21,187.12,2.97]
[1755758118750,3.02,187.21,187.12,8.3139]
[1755758118954,3.02,187.21,187.13,2.97]
[1755758121561,3.02,187.21,187.13,8.3137]
[1755758124362,1.46586643,187.18,187.13,8.3137]
[1755758124562,1.46586643,187.18,187.15,2.97]
[1755758124863,4.48586643,187.18,187.15,2.97]
[1755758125064,4.48586643,187.18,187.16,2.97]
[1755758125762,1.46586643,187.19,187.16,2.97]
[1755758125962,4.48586643,187.19,187.16,3.02]
[1755758127365,1.46586643,187.19,187.09,4.50090447]
[1755758127560,1.46586643,187.19,187.12,1.46586643]
[1755758127762,1.46586643,187.19,187.18,3.02]
[1755758128156,4.31586643,187.19,187.15,8.3632]
[1755758128363,4.31586643,187.19,187.15,5.3432]
[1755758128566,1.46586643,187.19,187.16,3.02]
[1755758128866,1.46586643,187.19,187.15,5.3432]
[1755758129067,1.46586643,187.19,187.18,3.02]
[1755758129666,1.46586643,187.19,187.13,5.3437]
[1755758129866,4.31586643,187.19,187.16,3.02]
[1755758132769,2.85,187.18,187.16,3.02]
[1755758133963,4.31586643,187.19,187.16,3.02]
[1755758135266,1.46586643,187.19,187.13,5.3438]
[1755758135472,1.46586643,187.19,187.17,3.02]
[1755758136374,4.31586643,187.19,187.17,3.02]
[1755758138072,4.31586643,187.19,187.12,6.80986643]
[1755758138268,4.31586643,187.19,187.15,3.02]
[1755758139179,1.46586643,187.17,187.1,98.59357749]
[1755758139374,1.46586643,187.19,187.14,3.02]
[1755758140472,1.46586643,187.21,187.14,3.02]
[1755758140672,1.46586643,187.21,187.15,3.02]
[1755758142076,4.31586643,187.22,187.16,3.02]
[1755758142668,4.31586643,187.22,187.17,3.02]
[1755758143681,4.31586643,187.22,187.19,3.02]
[1755758144279,137.07961261,187.24,187.17,1.46586643]
[1755758144483,138.54547904,187.24,187.18,3.02]
[1755758144875,138.54547904,187.24,187.18,8.3622]
[1755758145276,141.39547904,187.24,187.18,3.02]
[1755758147180,1.46586643,187.22,187.17,1.46586643]
[1755758147378,1.46586643,187.22,187.17,4.48586643]
[1755758147582,2.85,187.2,187.17,4.48586643]
[1755758148179,2.85,187.2,187.17,3.02]
[1755758149285,2.85,187.2,187.18,3.02]
[1755758149885,1.46586643,187.22,187.18,3.02]
[1755758150078,4.31586643,187.22,187.18,3.02]
[1755758150385,4.31586643,187.22,187.17,1.46586643]
[1755758150584,4.31586643,187.22,187.19,3.02]
[1755758150784,2.85,187.22,187.2,3.02]
[1755758151079,138.54547904,187.24,187.18,3.02]
[1755758151684,141.39547904,187.24,187.2,3.02]
[1755758151979,138.54547904,187.24,187.18,8.3621]
[1755758152684,1.46586643,187.24,187.19,5.342]
[1755758153185,4.31586643,187.24,187.2,3.02]
[1755758153989,2.85,187.22,187.2,3.02]
[1755758154684,2.85,187.22,187.19,1.46586643]
[1755758154989,2.85,187.22,187.19,4.48586643]
[1755758155583,2.85,187.22,187.17,1.46586643]
[1755758155785,130.26,187.28,187.17,1.46586643]
[1755758155786,2.85,187.23,187.17,1.46586643]
[1755758155991,1.46586643,187.24,187.17,4.49586643]
[1755758156193,1.46586643,187.24,187.18,3.03]
[1755758156595,4.46586643,187.24,187.19,6.80786643]
[1755758156788,3.0,187.24,187.21,3.03]
[1755758160497,3.0,187.23,187.21,3.03]
[1755758160893,4.46586643,187.28,187.21,1.46586643]
[1755758161093,4.46586643,187.28,187.23,1.46586643]
[1755758161298,4.46586643,187.3,187.24,3.03]
[1755758161498,3.0,187.3,187.26,3.03]
[1755758161799,3.0,187.3,187.25,1.46586643]
[1755758161800,3.0,187.3,187.27,3.03]
[1755758162395,3.0,187.29,187.27,3.03]
[1755758163993,1.46586643,187.3,187.25,3.03]
[1755758164299,4.46586643,187.28,187.22,1.46586643]
[1755758166299,3.0,187.28,187.21,3.03]
[1755758166692,3.0,187.28,187.21,8.3714]
[1755758168501,2.28809337,187.3,187.21,3.03]
[1755758168700,2.28809337,187.32,187.21,3.03]
[1755758168896,3.0,187.31,187.21,3.03]
[1755758169202,3.0,187.31,187.23,5.3409]
[1755758169503,3.0,187.31,187.23,8.3709]
[1755758170097,3.0,187.31,187.23,5.3409]
[1755758170303,3.0,187.31,187.24,3.03]
[1755758170801,3.0,187.31,187.25,3.03]
[1755758171799,5.28809337,187.35,187.26,2.28809337]
[1755758172105,5.28809337,187.35,187.27,3.03]
[1755758172403,5.28809337,187.35,187.28,5.3393]
[1755758172604,3.0,187.35,187.28,3.03]
[1755758172804,3.0,187.35,187.29,5.3392]
[1755758175111,3.0,187.35,187.28,8.3694]
[1755758176811,3.0,187.35,187.28,3.03]
[1755758178509,3.0,187.35,187.28,8.3695]
[1755758178713,3.0,187.35,187.28,5.3395]
[1755758178913,3.0,187.35,187.29,8.3691]
[1755758179403,3.0,187.35,187.3,3.03]
[1755758179603,3.0,187.35,187.31,3.03]
[1755758179903,3.0,187.35,187.32,3.03]
[1755758182209,5.28809337,187.47,187.33,3.03]
[1755758182414,3.0,187.41,187.33,3.03]
[1755758182710,2.28809337,187.39,187.3,2.28809337]
[1755758183012,2.28809337,187.39,187.29,3.03]
[1755758183013,3.0,187.38,187.29,3.03]
[1755758183807,3.0,187.38,187.29,8.3691]
[1755758184008,3.0,187.37,187.29,3.03]
[1755758185714,3.0,187.45,187.31,3.03]
[1755758185914,2.28809337,187.4,187.32,5.3382]
[1755758186110,2.96,187.39,187.32,5.3382]
[1755758186610,2.96,187.39,187.31,3.03]
[1755758187716,2.96,187.39,187.31,8.3684]
[1755758188219,2.96,187.39,187.31,3.03]
[1755758189818,2.96,187.39,187.32,5.3384]
[1755758190020,2.96,187.39,187.33,2.98]
[1755758191218,5.24809337,187.42,187.33,2.98]
[1755758191520,5.24809337,187.42,187.34,2.98]
[1755758193822,5.24809337,187.42,187.35,5.3375]
[1755758194023,5.24809337,187.42,187.36,2.98]
[1755758194523,2.96,187.42,187.36,2.98]
[1755758197326,2.96,187.42,187.36,8.3171]
[1755758198322,2.96,187.42,187.36,2.98]
[1755758199829,2.96,187.42,187.36,8.3172]
[1755758200519,2.96,187.42,187.37,5.3369]
[1755758200724,2.28809337,187.44,187.38,2.98]
[1755758200925,5.24809337,187.44,187.38,2.98]
[1755758202728,5.24809337,187.44,187.38,8.3166]
[1755758202923,121.92690858,187.49,187.39,2.28809337]
[1755758203130,121.92690858,187.49,187.4,2.98]
[1755758203324,121.92690858,187.49,187.42,8.3155]
[1755758205029,5.24809337,187.5,187.42,8.3155]
[1755758205229,5.24809337,187.52,187.42,5.26809337]
[1755758205433,5.24809337,187.52,187.43,2.98]
[1755758206124,5.24809337,187.52,187.44,5.3349]
[1755758207830,2.96,187.51,187.44,5.3349]
[1755758209226,2.96,187.51,187.43,8.3152]
[1755758209533,2.96,187.51,187.43,2.98]
[1755758209723,2.96,187.51,187.44,5.335]
[1755758209922,2.96,187.51,187.43,2.98]
[1755758210333,2.96,187.51,187.44,5.3348]
[1755758211029,2.96,187.51,187.45,5.3346]
[1755758212032,2.96,187.51,187.44,5.3349]
[1755758212334,2.96,187.51,187.43,2.98]
[1755758213235,2.96,187.51,187.43,8.3152]
[1755758213930,2.96,187.51,187.44,5.335]
[1755758214135,2.28809337,187.52,187.43,2.98]
[1755758214536,2.28809337,187.52,187.45,8.3145]
[1755758214736,2.96,187.51,187.45,8.3145]
[1755758216135,2.96,187.51,187.45,2.98]
[1755758217537,2.96,187.51,187.45,8.3146]
[1755758217837,2.96,187.51,187.45,2.98]
[1755758218633,2.96,187.51,187.46,5.3344]
[1755758218831,2.96,187.51,187.4,2.28809337]
[1755758219036,2.28809337,187.49,187.41,3.01]
[1755758219339,2.86,187.48,187.41,3.01]
[1755758220438,2.86,187.48,187.42,5.3354]
[1755758220639,2.86,187.48,187.41,3.01]